fUST/lending_fUST_20250110
["ID","MTS","AMOUNT","RATE_DAILY","PERIOD"]
[348339440,1736454638201,-500.0,0.00020538,3]
[348339442,1736454638213,-500.0,0.00020539,3]
[348339444,1736454638225,-500.0,0.00020539,3]
[348339447,1736454638236,-251.26986538,0.00020539,3]
[348339449,1736454638247,-449.06460882,0.0002054,3]
[348339450,1736454638263,-50.93539118,0.0002054,3]
[348339451,1736454638274,-500.0,0.00020544,3]
[348339452,1736454638285,-500.0,0.00020695,2]
[348339453,1736454638297,-266.68736744,0.000207,2]
[348339455,1736454638309,-330.59,0.00020811,3]
[348339457,1736454638320,-188.92892899,0.00020812,3]
[348339462,1736454638406,-301.23037303,0.00020812,3]
[348339464,1736454638419,-500.0,0.00020812,3]
[348339466,1736454638429,-295.05509559,0.00020812,3]
[348339468,1736454638439,-500.0,0.00020812,2]
[348339470,1736454638449,-236.91453138,0.00020812,3]
[348339497,1736454638729,-500.0,0.00020538,3]
[348339499,1736454638740,-263.08546862,0.00020812,3]
[348339502,1736454638751,-500.0,0.00020812,3]
[348339504,1736454638763,-598.11,0.00020812,3]
[348339506,1736454638774,-500.0,0.00020812,3]
[348339508,1736454638785,-500.0,0.00020812,3]
[348339510,1736454638796,-1856.87,0.00020812,3]
[348339513,1736454638807,-500.0,0.00020812,3]
[348339515,1736454638818,-500.0,0.00020812,3]
[348339517,1736454638827,-500.0,0.00020812,3]
[348339519,1736454638839,-500.0,0.00020812,3]
[348339522,1736454638850,-500.0,0.00020813,3]
[348339526,1736454638861,-500.0,0.00020814,3]
[348339529,1736454638872,-500.0,0.00020818,3]
[348339532,1736454638888,-7438.69753278,0.00021,2]
[348339534,1736454638899,-2090.0215296,0.00021,3]
[348339536,1736454638910,-230.74,0.00021086,3]
[348339538,1736454638920,-500.0,0.00021086,2]
[348339540,1736454638932,-500.0,0.00021086,3]
[348339542,1736454638942,-500.0,0.00021086,3]
[348339544,1736454638951,-1856.87,0.00021086,3]
[348339547,1736454638961,-500.0,0.00021086,3]
[348339549,1736454638971,-304.28029636,0.00021086,3]
[348339551,1736454638984,-158.72876377,0.00021086,3]
[348339553,1736454638995,-500.0,0.00021087,3]
[348339555,1736454639007,-500.0,0.00021088,3]
[348339558,1736454639018,-500.0,0.00021092,3]
[348339560,1736454639030,-1000.0,0.00021243,2]
[348339562,1736454639041,-500.0,0.00021359,3]
[348339564,1736454639052,-500.0,0.00021359,3]
[348339567,1736454639064,-500.0,0.00021359,3]
[348339569,1736454639074,-500.0,0.00021359,3]
[348339571,1736454639084,-500.0,0.0002136,2]
[348339573,1736454639095,-500.0,0.0002136,3]
[348339575,1736454639105,-500.0,0.0002136,3]
[348339577,1736454639115,-1856.87,0.0002136,3]
[348339579,1736454639126,-500.0,0.0002136,3]
[348339581,1736454639141,-389.7,0.00021361,3]
[348339583,1736454639152,-500.0,0.00021362,3]
[348339585,1736454639162,-500.0,0.00021366,3]
[348339587,1736454639172,-420.99906752,0.00021633,3]
[348339590,1736454639182,-500.0,0.00021633,3]
[348339592,1736454639192,-500.0,0.00021634,2]
[348339594,1736454639203,-500.0,0.00021634,3]
[348339596,1736454639214,-500.0,0.00021634,3]
[348339598,1736454639224,-1856.87,0.00021634,3]
[348339600,1736454639234,-500.0,0.00021636,3]
[348339602,1736454639244,-500.0,0.0002164,3]
[348339604,1736454639255,-165.012035,0.00021661,2]
[348339606,1736454639265,-500.0,0.00021907,3]
[348339608,1736454639276,-500.0,0.00021908,2]
[348339611,1736454639287,-500.0,0.00021908,3]
[348339613,1736454639297,-500.0,0.00021908,3]
[348339615,1736454639308,-1856.87,0.00021908,3]
[348339617,1736454639319,-500.0,0.0002191,3]
[348339619,1736454639330,-500.0,0.00021914,3]
[348339621,1736454639340,-420.0,0.00022058,2]
[348339623,1736454639351,-636.886,0.0002216,2]
[348339625,1736454639361,-500.0,0.00022181,3]
[348339627,1736454639373,-500.0,0.00022182,2]
[348339629,1736454639386,-500.0,0.00022182,3]
[348339632,1736454639397,-500.0,0.00022182,3]
[348339644,1736454639509,-1856.87,0.00022182,3]
[348339647,1736454639523,-500.0,0.00022184,3]
[348339649,1736454639532,-500.0,0.00022188,3]
[348339651,1736454639542,-500.0,0.00022455,3]
[348339653,1736454639551,-500.0,0.00022456,2]
[348339655,1736454639561,-500.0,0.00022456,3]
[348339657,1736454639570,-500.0,0.00022456,3]
[348339659,1736454639579,-650.66020974,0.00022456,3]
[348339661,1736454639591,-1206.20979026,0.00022456,3]
[348339663,1736454639600,-500.0,0.00022458,3]
[348339665,1736454639610,-211.91220071,0.00022461,2]
[348339667,1736454639619,-169.64780054,0.00022461,2]
[348339669,1736454639629,-237.83835143,0.00022461,2]
[348339671,1736454639642,-500.0,0.00022462,3]
[348339673,1736454639651,-16219.43231026,0.000226,3]
[348339676,1736454639662,-23869.44151082,0.000226,3]
[348339678,1736454639675,-6078.16901583,0.000226,3]
[348339680,1736454639685,-125.47788392,0.00022729,3]
[348339819,1736454640885,-374.52211608,0.00022729,3]
[348339821,1736454640895,-581.9311,0.0002273,2]
[348339823,1736454640904,-334.00817678,0.0002273,3]
[348339825,1736454640914,-500.0,0.0002273,3]
[348339827,1736454640923,-1856.87,0.0002273,3]
[348339829,1736454640933,-500.0,0.00022732,3]
[348339831,1736454640943,-1463.343,0.00022973,2]
[348339833,1736454640952,-394.0,0.00022973,2]
[348339835,1736454640962,-500.0,0.00023003,3]
[348339837,1736454640972,-500.0,0.00023004,3]
[348339839,1736454640982,-1856.87,0.00023004,3]
[348339841,1736454640991,-500.0,0.00023006,3]
[348339844,1736454641000,-3000.0,0.00023232,2]
[348339845,1736454641010,-500.0,0.00023277,3]
[348339847,1736454641019,-500.0,0.00023278,3]
[348339849,1736454641028,-1856.87,0.00023278,3]
[348339851,1736454641037,-500.0,0.0002328,3]
[348339854,1736454641047,-952.54,0.000233,2]
[348339855,1736454641058,-2000.0,0.000233,2]
[348339857,1736454641068,-151.0,0.000233,10]
[348339859,1736454641078,-151.0,0.000233,10]
[348339862,1736454641087,-151.0,0.000233,8]
[348339864,1736454641097,-153.34,0.000233,31]
[348339865,1736454641106,-153.34,0.000233,31]
[348339867,1736454641115,-153.34,0.000233,31]
[348339870,1736454641124,-153.34,0.000233,31]
[348339872,1736454641138,-153.34,0.000233,31]
[348339874,1736454641147,-153.34,0.000233,31]
[348339876,1736454641156,-153.34,0.000233,31]
[348339878,1736454641165,-162.851738,0.00023332,7]
[348339880,1736454641174,-151.0,0.00023332,7]
[348339882,1736454641185,-151.0,0.00023332,7]
[348339884,1736454641194,-151.0,0.00023332,7]
[348339886,1736454641203,-204.534696,0.00023332,7]
[348339888,1736454641214,-151.0,0.00023332,7]
[348339890,1736454641223,-151.0,0.00023332,7]
[348339892,1736454641233,-151.0,0.00023332,7]
[348339894,1736454641243,-500.0,0.00023332,3]
[348339896,1736454641252,-150.24,0.00023333,7]
[348339898,1736454641261,-500.0,0.00023333,7]
[348339900,1736454641270,-500.0,0.00023333,7]
[348339902,1736454641279,-150.24,0.00023333,2]
[348339904,1736454641290,-500.0,0.00023333,7]
[348339906,1736454641299,-150.24,0.00023333,7]
[348339908,1736454641308,-500.0,0.00023333,7]
[348339910,1736454641317,-150.24,0.00023333,7]
[348339912,1736454641327,-150.24,0.00023333,7]
[348339914,1736454641336,-500.0,0.00023333,7]
[348339916,1736454641345,-150.24,0.00023333,2]
[348339918,1736454641355,-199.88811268,0.00023333,7]
[348339920,1736454641364,-151.0,0.00023335,7]
[348339922,1736454641377,-151.0,0.00023335,7]
[348339924,1736454641390,-155.531659,0.00023335,7]
[348339926,1736454641399,-151.0,0.00023335,7]
[348339928,1736454641409,-151.0,0.00023335,7]
[348339930,1736454641420,-151.0,0.00023335,7]
[348339932,1736454641430,-5589.11165182,0.00023336,5]
[348339934,1736454641440,-2281.459517,0.00023336,5]
[348339936,1736454641449,-151.0,0.00023336,7]
[348339938,1736454641460,-151.0,0.00023336,7]
[348339940,1736454641470,-151.284,0.00023336,7]
[348339942,1736454641480,-151.0,0.00023336,7]
[348339944,1736454641489,-151.0,0.00023336,7]
[348339946,1736454641499,-2090.0215296,0.00023336,7]
[348339948,1736454641509,-2090.0215296,0.00023336,10]
[348339950,1736454641518,-261423.03989546,0.00023336,10]
[348339952,1736454641530,-13733.4,0.00023336,10]
[348339955,1736454641547,-45882.0,0.00023336,10]
[348339957,1736454641558,-394.971675,0.00023336,10]
[348339959,1736454641569,-1737.84387867,0.00023336,10]
[348339961,1736454641580,-365.33496854,0.00023336,10]
[348340274,1736454643852,-2287.5,0.00023336,10]
[348340287,1736454643911,-1850.00000008,0.00023336,10]
[348340290,1736454643923,-2500.176,0.00023336,10]
[348340293,1736454643934,-517.5000003,0.00023336,10]
[348340738,1736454648244,-500.0,0.00022183,3]
[348340739,1736454648254,-500.0,0.00022457,3]
[348340740,1736454648264,-500.0,0.00022731,3]
[348340741,1736454648273,-500.0,0.00023005,3]
[348340742,1736454648283,-500.0,0.00023333,7]
[348340744,1736454648294,-500.0,0.00023333,7]
[348340745,1736454648303,-6667.27369081,0.00023336,10]
[348340746,1736454648315,-45693.99999999,0.00023336,10]
[348340747,1736454648330,-13487.64892551,0.00023336,10]
[348340855,1736454656438,248.55,0.00022333,120]
[348340857,1736454913479,206.0369653,0.00025,120]
[348340895,1736455610269,166.352492,0.00013973,2]
[348340896,1736455632121,-168.821078,0.00019178,2]
[348340897,1736455632142,-170.6858273,0.00019263,2]
[348340898,1736455632166,-907.51747952,0.00020163,2]
[348340899,1736455632187,-3606.0,0.00020261,2]
[348340900,1736455632208,-171.031,0.00020262,2]
[348340901,1736455632230,-500.0,0.00020262,3]
[348340902,1736455632252,-500.0,0.00020262,3]
[348340903,1736455632272,-500.0,0.00020262,3]
[348340904,1736455632293,-500.0,0.00020262,3]
[348340905,1736455632315,-321.68518596,0.00020262,3]
[348340906,1736455649085,-178.31481404,0.00020262,3]
[348340907,1736455649106,-249.53119119,0.00020262,3]
[348340908,1736455650096,-250.46880881,0.00020262,3]
[348340909,1736455650118,-500.0,0.00020262,3]
[348340910,1736455650140,-106.63985908,0.00020262,3]
[348340911,1736455651102,-500.0,0.00020262,3]
[348340912,1736455651126,-500.0,0.00020262,3]
[348340913,1736455651152,-28.85896007,0.00020262,3]
[348340990,1736455832334,-453.86465756,0.00020161,4]
[348340991,1736455832343,-486.73534244,0.00020162,2]
[348341194,1736455837887,-307.34245214,0.00020162,2]
[348341196,1736455837896,-500.0,0.00020261,3]
[348341198,1736455837906,-500.0,0.00020261,3]
[348341200,1736455837916,-603.39,0.00020261,3]
[348341202,1736455837925,-500.0,0.00020261,3]
[348341205,1736455837935,-300.0,0.00020261,2]
[348341207,1736455837944,-1000.0,0.00020261,7]
[348341209,1736455837954,-500.0,0.00020261,3]
[348341211,1736455837964,-154.66,0.00020262,2]
[348341213,1736455837974,-471.14103993,0.00020262,3]
[348341215,1736455837983,-500.0,0.00020262,3]
[348341217,1736455837993,-500.0,0.00020262,3]
[348341219,1736455838002,-500.0,0.00020262,3]
[348341221,1736455838012,-500.0,0.00020262,3]
[348341223,1736455838021,-500.0,0.00020262,3]
[348341225,1736455838031,-500.0,0.00020262,3]
[348341228,1736455838042,-500.0,0.00020262,3]
[348341230,1736455838052,-500.0,0.00020262,3]
[348341232,1736455838065,-500.0,0.00020262,3]
[348341234,1736455838074,-500.78009486,0.00020262,3]
[348341236,1736455838083,-502.00332987,0.00020262,3]
[348341238,1736455838093,-500.00000001,0.00020262,3]
[348341240,1736455838102,-500.0,0.00020262,3]
[348341242,1736455838111,-500.0,0.00020262,3]
[348341244,1736455838121,-115.4572141,0.00020262,3]
[348341446,1736455840033,-384.5427859,0.00020262,3]
[348341448,1736455840042,-507.93205456,0.00020262,3]
[348341450,1736455840052,-504.27372914,0.00020262,3]
[348341452,1736455840061,-500.0,0.00020262,3]
[348341454,1736455840072,-500.0,0.00020262,3]
[348341456,1736455840082,-498.93268323,0.00020262,3]
[348341458,1736455840092,-500.0,0.00020262,3]
[348341460,1736455840101,-500.0,0.00020262,3]
[348341462,1736455840111,-556.78,0.00020262,3]
[348341464,1736455840121,-166.48684601,0.00020262,2]
[348341466,1736455840130,-500.0,0.00020262,3]
[348341468,1736455840140,-500.0,0.00020262,3]
[348341470,1736455840149,-500.0,0.00020262,3]
[348341472,1736455840159,-500.0,0.00020262,3]
[348341474,1736455840168,-500.0,0.00020262,3]
[348341476,1736455840178,-503.19054478,0.00020262,3]
[348341479,1736455840187,-500.0,0.00020262,3]
[348341481,1736455840197,-500.0,0.00020262,3]
[348341483,1736455840209,-500.0,0.00020262,3]
[348341485,1736455840218,-500.0,0.00020262,3]
[348341487,1736455840227,-500.0,0.00020262,3]
[348341489,1736455840237,-500.0,0.00020262,3]
[348341491,1736455840246,-500.0,0.00020262,3]
[348341493,1736455840255,-500.0,0.00020262,3]
[348341495,1736455840265,-500.0,0.00020262,3]
[348341508,1736455840376,-500.0,0.00020262,3]
[348341510,1736455840386,-500.0,0.00020262,3]
[348341512,1736455840396,-500.0,0.00020262,3]
[348341515,1736455840406,-500.0,0.00020262,3]
[348341516,1736455840415,-523.48383294,0.00020262,3]
[348341518,1736455840424,-500.0,0.00020262,3]
[348341521,1736455840434,-500.0,0.00020262,3]
[348341523,1736455840443,-500.0,0.00020262,3]
[348341525,1736455840452,-500.0,0.00020262,3]
[348341527,1736455840461,-500.0,0.00020262,3]
[348341529,1736455840471,-500.0,0.00020262,3]
[348341531,1736455840480,-500.0,0.00020262,3]
[348341533,1736455840489,-500.0,0.00020262,3]
[348341535,1736455840502,-500.0,0.00020262,3]
[348341537,1736455840511,-500.0,0.00020262,3]
[348341538,1736455840520,-500.0,0.00020262,3]
[348341541,1736455840530,-500.0,0.00020262,2]
[348341543,1736455840539,-500.0,0.00020262,3]
[348341544,1736455840548,-500.0,0.00020262,3]
[348341546,1736455840558,-500.0,0.00020262,3]
[348341548,1736455840569,-500.0,0.00020262,3]
[348341550,1736455840578,-500.0,0.00020262,3]
[348341552,1736455840587,-500.0,0.00020262,3]
[348341554,1736455840596,-973.02,0.00020262,3]
[348341556,1736455840606,-500.0,0.00020262,2]
[348341558,1736455840615,-500.0,0.00020262,3]
[348341560,1736455840624,-500.0,0.00020262,3]
[348341562,1736455840634,-500.0,0.00020262,3]
[348341564,1736455840644,-500.0,0.00020262,3]
[348341567,1736455840654,-500.0,0.00020262,3]
[348341568,1736455840663,-500.0,0.00020262,3]
[348341570,1736455840673,-500.0,0.00020262,3]
[348341573,1736455840682,-500.0,0.00020262,3]
[348341575,1736455840691,-500.0,0.00020262,3]
[348341577,1736455840701,-500.0,0.00020262,3]
[348341579,1736455840710,-500.0,0.00020262,3]
[348341581,1736455840719,-500.0,0.00020262,3]
[348341582,1736455840729,-500.0,0.00020262,3]
[348341584,1736455840739,-500.0,0.00020262,3]
[348341586,1736455840753,-525.30503279,0.00020262,3]
[348341589,1736455840764,-500.0,0.00020262,3]
[348341591,1736455840774,-500.0,0.00020262,3]
[348341593,1736455840784,-500.0,0.00020262,3]
[348341595,1736455840794,-500.0,0.00020262,3]
[348341597,1736455840803,-500.0,0.00020262,3]
[348341599,1736455840813,-500.0,0.00020262,3]
[348341601,1736455840823,-500.0,0.00020262,3]
[348341603,1736455840833,-500.0,0.00020262,3]
[348341605,1736455840843,-500.0,0.00020262,3]
[348341607,1736455840852,-500.0,0.00020262,3]
[348341609,1736455840862,-500.0,0.00020262,3]
[348341611,1736455840871,-500.0,0.00020262,3]
[348341613,1736455840881,-500.0,0.00020262,3]
[348341615,1736455840891,-500.0,0.00020262,3]
[348341617,1736455840901,-500.0,0.00020262,3]
[348341619,1736455840910,-500.0,0.00020262,3]
[348341621,1736455840919,-500.0,0.00020262,3]
[348341623,1736455840929,-196.45549596,0.00020262,3]
[348341625,1736455840939,-500.0,0.00020262,3]
[348341627,1736455840948,-776.21,0.00020262,3]
[348341629,1736455840957,-500.0,0.00020262,3]
[348341631,1736455840967,-499.0,0.00020262,2]
[348341633,1736455840977,-253.76624793,0.00020262,3]
[348341635,1736455840986,-500.0,0.00020262,3]
[348341637,1736455840996,-500.0,0.00020262,3]
[348341639,1736455841005,-500.0,0.00020262,3]
[348341641,1736455841015,-500.0,0.00020262,3]
[348341643,1736455841024,-500.0,0.00020262,3]
[348341645,1736455841034,-500.0,0.00020262,3]
[348341647,1736455841044,-500.0,0.00020262,3]
[348341649,1736455841053,-500.62136378,0.00020262,3]
[348341651,1736455841063,-500.0,0.00020262,3]
[348341653,1736455841075,-500.0,0.00020262,3]
[348341655,1736455841085,-500.0,0.00020262,3]
[348341657,1736455841094,-500.0,0.00020262,3]
[348341659,1736455841104,-500.0,0.00020262,3]
[348341661,1736455841114,-8941.23,0.00020262,3]
[348341663,1736455841124,-500.0,0.00020262,3]
[348341665,1736455841134,-500.0,0.00020262,3]
[348341667,1736455841144,-500.0,0.00020262,3]
[348341669,1736455841153,-263.97341103,0.00020263,3]
[348341671,1736455841163,-500.0,0.00020263,3]
[348341673,1736455841173,-500.0,0.00020263,3]
[348341675,1736455841183,-500.0,0.00020263,3]
[348341677,1736455841193,-500.48088282,0.00020263,3]
[348341679,1736455841202,-500.0,0.00020263,3]
[348341681,1736455841212,-644.49107387,0.00020263,3]
[348341683,1736455841221,-500.0,0.00020263,3]
[348341685,1736455841231,-500.0,0.00020263,3]
[348341687,1736455841240,-178.50957707,0.00020263,3]
[348341689,1736455841250,-500.0,0.00020263,3]
[348341691,1736455841259,-500.0,0.00020263,3]
[348341693,1736455841268,-500.0,0.00020263,3]
[348341695,1736455841277,-500.0,0.00020263,3]
[348341697,1736455841287,-510.13901952,0.00020263,3]
[348341699,1736455841296,-500.0,0.00020263,3]
[348341701,1736455841306,-610.16362687,0.00020263,3]
[348341703,1736455841315,-503.88895537,0.00020263,3]
[348341705,1736455841327,-489.29237097,0.00020263,3]
[348341707,1736455841336,-500.0,0.00020263,3]
[348341709,1736455841349,-500.0,0.00020263,3]
[348341711,1736455841358,-500.0,0.00020263,3]
[348341713,1736455841367,-500.0,0.00020263,7]
[348341715,1736455841377,-500.0,0.00020263,3]
[348341717,1736455841386,-500.0,0.00020263,3]
[348341719,1736455841395,-500.0,0.00020263,3]
[348341721,1736455841404,-500.0,0.00020263,3]
[348341723,1736455841414,-500.0,0.00020263,3]
[348341725,1736455841426,-438.91064305,0.00020263,3]
[348341727,1736455841437,-500.0,0.00020263,3]
[348341729,1736455841446,-500.0,0.00020263,3]
[348341731,1736455841455,-500.0,0.00020263,3]
[348341733,1736455841464,-500.0,0.00020263,3]
[348341735,1736455841473,-500.0,0.00020263,3]
[348341737,1736455841482,-509.93732249,0.00020263,3]
[348341739,1736455841491,-500.0,0.00020263,3]
[348341741,1736455841500,-500.0,0.00020263,3]
[348341743,1736455841510,-500.0,0.00020263,3]
[348341745,1736455841519,-500.0,0.00020263,3]
[348341747,1736455841528,-153.13694079,0.00020263,3]
[348341749,1736455841537,-500.0,0.00020263,3]
[348341751,1736455841546,-500.0,0.00020263,3]
[348341753,1736455841555,-500.0,0.00020263,3]
[348341755,1736455841564,-500.0,0.00020263,3]
[348341757,1736455841575,-500.0,0.00020263,3]
[348341759,1736455841584,-500.0,0.00020263,3]
[348341761,1736455841593,-500.0,0.00020263,3]
[348341763,1736455841602,-500.0,0.00020263,3]
[348341765,1736455841612,-500.0,0.00020263,3]
[348341767,1736455841621,-500.0,0.00020263,3]
[348341769,1736455841630,-500.0,0.00020263,3]
[348341771,1736455841641,-500.0,0.00020263,3]
[348341773,1736455841651,-500.0,0.00020263,3]
[348341775,1736455841660,-500.0,0.00020263,3]
[348341777,1736455841669,-500.0,0.00020263,3]
[348341779,1736455841678,-500.0,0.00020263,3]
[348341781,1736455841688,-500.0,0.00020263,3]
[348341783,1736455841697,-350.30459251,0.00020263,3]
[348341785,1736455841706,-500.0,0.00020263,3]
[348341787,1736455841715,-500.0,0.00020263,3]
[348341789,1736455841725,-500.0,0.00020263,3]
[348341791,1736455841734,-500.0,0.00020263,3]
[348341793,1736455841744,-500.0,0.00020263,3]
[348341795,1736455841756,-500.0,0.00020263,3]
[348341797,1736455841766,-500.0,0.00020263,3]
[348341799,1736455841776,-500.0,0.00020263,3]
[348341801,1736455841785,-500.0,0.00020263,3]
[348341802,1736455841796,-500.0,0.00020263,3]
[348341803,1736455841806,-500.0,0.00020263,3]
[348341804,1736455841815,-500.0,0.00020263,3]
[348341805,1736455841830,-500.0,0.00020263,3]
[348341806,1736455841840,-500.0,0.00020263,3]
[348341807,1736455841849,-500.0,0.00020263,3]
[348341808,1736455841858,-500.0,0.00020263,3]
[348341809,1736455841867,-500.0,0.00020263,3]
[348341810,1736455841876,-500.0,0.00020263,3]
[348341811,1736455841886,-500.0,0.00020263,3]
[348341812,1736455841895,-500.0,0.00020263,3]
[348341813,1736455841905,-500.0,0.00020263,3]
[348341814,1736455841914,-500.0,0.00020263,3]
[348341815,1736455841923,-500.0,0.00020263,3]
[348341816,1736455841933,-437.11290476,0.00020263,3]
[348341817,1736455841942,-500.0,0.00020263,3]
[348341818,1736455841952,-500.0,0.00020263,3]
[348341819,1736455841961,-500.0,0.00020263,3]
[348341820,1736455841971,-502.40030029,0.00020263,3]
[348341822,1736455841980,-500.0,0.00020263,3]
[348341823,1736455841990,-500.0,0.00020263,3]
[348341825,1736455842000,-500.0,0.00020263,3]
[348341827,1736455842009,-500.0,0.00020263,3]
[348341829,1736455842019,-500.0,0.00020263,3]
[348341831,1736455842028,-500.0,0.00020263,3]
[348341833,1736455842038,-500.0,0.00020263,3]
[348341835,1736455842047,-306.2223477,0.00020263,3]
[348341837,1736455842057,-500.0,0.00020263,3]
[348341839,1736455842067,-500.0,0.00020263,3]
[348341841,1736455842078,-500.0,0.00020263,3]
[348341843,1736455842088,-441.5777367,0.00020263,3]
[348341845,1736455842097,-500.0,0.00020263,3]
[348341847,1736455842107,-500.0,0.00020263,3]
[348341849,1736455842116,-500.0,0.00020263,3]
[348341851,1736455842126,-500.0,0.00020263,3]
[348341853,1736455842135,-500.0,0.00020263,3]
[348341855,1736455842145,-500.0,0.00020263,3]
[348341857,1736455842154,-243.13095438,0.00020263,3]
[348341859,1736455842163,-500.0,0.00020263,3]
[348341861,1736455842172,-500.0,0.00020263,3]
[348341863,1736455842181,-500.0,0.00020263,3]
[348341865,1736455842190,-500.0,0.00020263,3]
[348341867,1736455842199,-501.14427851,0.00020263,3]
[348341869,1736455842208,-500.0,0.00020263,3]
[348341871,1736455842219,-500.0,0.00020263,3]
[348341873,1736455842229,-507.77024554,0.00020263,3]
[348341875,1736455842238,-500.0,0.00020263,3]
[348341877,1736455842247,-500.0,0.00020263,3]
[348341879,1736455842257,-500.0,0.00020263,3]
[348341881,1736455842267,-491.92957305,0.00020263,3]
[348341884,1736455842275,-500.0,0.00020263,3]
[348341886,1736455842285,-500.0,0.00020263,3]
[348341888,1736455842296,-219.5755841,0.00020263,3]
[348341891,1736455842306,-768.68,0.00020263,3]
[348341893,1736455842315,-500.0,0.00020263,3]
[348341895,1736455842326,-500.0,0.00020263,3]
[348341897,1736455842335,-500.43789982,0.00020263,3]
[348341899,1736455842343,-501.62436648,0.00020263,3]
[348341901,1736455842353,-500.0,0.00020263,3]
[348341903,1736455842363,-500.0,0.00020263,3]
[348341905,1736455842372,-500.0,0.00020263,3]
[348341907,1736455842381,-500.0,0.00020263,3]
[348341910,1736455842391,-500.0,0.00020264,3]
[348341912,1736455842401,-498.26592187,0.00020264,3]
[348341915,1736455842410,-355.65125752,0.00020264,3]
[348341918,1736455842419,-500.0,0.00020264,3]
[348341920,1736455842429,-522.18235512,0.00020264,3]
[348341922,1736455842438,-500.0,0.00020264,3]
[348341924,1736455842448,-500.0,0.00020264,3]
[348341926,1736455842457,-500.0,0.00020264,3]
[348341928,1736455842466,-500.0,0.00020264,3]
[348341930,1736455842475,-500.0,0.00020264,3]
[348341932,1736455842485,-1551.03,0.00020265,3]
[348341934,1736455842494,-500.0,0.00020265,3]
[348341936,1736455842504,-500.0,0.00020265,3]
[348341940,1736455842513,-1479.18,0.00020265,3]
[348341944,1736455842522,-168.08902754,0.00020273,2]
[348341949,1736455842531,-283.63704073,0.00020273,2]
[348341953,1736455842541,-303.39305904,0.00020362,4]
[348341957,1736455842550,-500.0,0.00020535,3]
[348341961,1736455842559,-500.0,0.00020535,3]
[348341965,1736455842569,-603.39,0.00020535,3]
[348341984,1736455842651,-500.0,0.00020535,3]
[348341987,1736455842661,-1000.0,0.00020535,7]
[348341990,1736455842671,-500.0,0.00020535,3]
[348341993,1736455842680,-500.0,0.00020536,3]
[348341996,1736455842689,-500.0,0.00020536,3]
[348341999,1736455842698,-500.0,0.00020536,3]
[348342001,1736455842708,-500.0,0.00020536,3]
[348342004,1736455842719,-500.0,0.00020536,3]
[348342007,1736455842728,-500.0,0.00020536,3]
[348342010,1736455842738,-500.0,0.00020536,3]
[348342013,1736455842749,-500.0,0.00020536,3]
[348342016,1736455842759,-500.0,0.00020536,3]
[348342019,1736455842768,-500.0,0.00020536,3]
[348342022,1736455842778,-500.0,0.00020536,3]
[348342025,1736455842787,-500.0,0.00020536,3]
[348342028,1736455842796,-500.0,0.00020536,3]
[348342030,1736455842805,-500.0,0.00020536,3]
[348342032,1736455842815,-500.0,0.00020536,3]